Cogmind - Beta 15 @@@ ROGUE MODE // 2025.10.12 @ 14:13:41 Player: AussieBBQ Result: Self-destructed Performance ------------- Evolutions (5) 2500 Regions Visited (8) 1600 Robots Destroyed (96) 480 Value Destroyed (2882) 2882 Prototype IDs (7) 140 Alien Tech Used (0) 0 Bonus (104) 104 TOTAL SCORE: 7706 Bonus ------- High Alert Combat Kills 104 Cogmind --------- Core Integrity 522/1000 Matter 193/300 Energy 100/100 System Corruption 0% Temperature Cool (0) Movement Core (50) Location -5/Factory Parts ------- > --- POWER (2) -------- (None) > --- PROPULSION (5) --- (None) > --- UTILITY (8) ------ (None) > --- WEAPON (2) ------- (None) > --- INVENTORY (5) ---- Light Nuclear Core Small Storage Unit Heavy Particle Cannon Improved Proton Missile Launcher Peak State ------------ > --- POWER ------------ Light Nuclear Core Micro Nuclear Core > --- PROPULSION ------- Gravmag System Gravmag System Gravmag System Gravmag System Improved Gravmag System > --- UTILITY ---------- Improved Heat Sink Improved Heat Sink Large Storage Unit Advanced Visual Processing Unit Thermal Defense Suite Hacking Suite > --- WEAPON ----------- Gatling Laser Gatling Laser > --- INVENTORY -------- Light Nuclear Core Airjet Coolant Injector Medium Matter Pod Seismic Detector Hardened Light Armor Plating Layered Light Armor Plating Layered Light Armor Plating Force Field Precision Beam Rifle Heavy Particle Cannon Heavy Particle Cannon Proton Missile Launcher Improved Grenade Launcher Katana [Rating: 59] Favorites ----------- Power Heavy Ion Engine Engine Heavy Ion Engine Power Core Nuclear Core Propulsion Aluminum Leg Leg Aluminum Leg Hover Unit Gravmag System Flight Unit Nuclear Pulse Thruster Utility Improved Heat Sink Device Improved Heat Sink Storage Small Storage Unit Processor Advanced Visual Processing Unit Hackware Hacking Suite Protection Hardened Medium Armor Plating Weapon Beam Cannon Energy Gun Field Laser Energy Cannon Beam Cannon Ballistic Gun Autogun Ballistic Cannon Gauss Cannon Launcher Improved Grenade Launcher Slashing Weapon Katana Build | -11 -10 -10 -8 -7 -6 -6 -6 -5 ------- Run | Yrd Mat Sub Mat Fac Fac Was Fac Fac Slots Evolved 10 | . . . 4 2 2 . . 2 Power 1 | . . . . . 1 . . . Propulsion 3 | . . . 2 1 . . . . Utility 6 | . . . 2 1 1 . . 2 Weapon . | . . . . . . . . . Parts Attached 99 | 1 17 . 55 9 9 1 5 2 Power 9 | . 2 . 4 2 1 . . . Engine 2 | . 2 . . . . . . . Core 7 | . . . 4 2 1 . . . Reactor . | . . . . . . . . . Propulsion 28 | . 4 . 19 1 2 . 1 1 Treads . | . . . . . . . . . Leg 18 | . 4 . 14 . . . . . Wheel . | . . . . . . . . . Hover 7 | . . . 5 1 1 . . . Flight 3 | . . . . . 1 . 1 1 Utility 32 | 1 6 . 14 2 4 1 3 1 Device 15 | 1 5 . 4 1 2 1 1 . Storage 5 | . 1 . 3 . . . . 1 Processor 3 | . . . 2 . . . 1 . Hackware 2 | . . . 1 . . . 1 . Protection 7 | . . . 4 1 2 . . . Artifact . | . . . . . . . . . Weapon 30 | . 5 . 18 4 2 . 1 . Energy Gun 15 | . 2 . 10 1 2 . . . Energy Cannon 5 | . 2 . 1 2 . . . . Ballistic Gun 2 | . . . 2 . . . . . Ballistic Cannon 3 | . . . 3 . . . . . Launcher 4 | . 1 . 1 1 . . 1 . Special Weapon . | . . . . . . . . . Impact Weapon . | . . . . . . . . . Slashing Weapon 1 | . . . 1 . . . . . Piercing Weapon . | . . . . . . . . . Special Melee Weapon . | . . . . . . . . . Unidentified Prototypes 5 | . 1 . 2 . 2 . . . Parts Lost 32 | . 1 . 13 . 12 1 4 1 Power 2 | . . . . . 2 . . . Propulsion 13 | . . . 6 . 5 . 1 1 Utility 13 | . 1 . 4 . 4 1 3 . Weapon 4 | . . . 3 . 1 . . . Highest Loss Streak 9 | . 1 . 4 . 9 1 4 1 To Critical Strikes . | . . . . . . . . . Average Backups 9 | 6 7 8 8 14 13 3 3 3 Power . | 1 . 1 1 1 1 1 1 1 Propulsion 1 | 4 1 3 1 1 . . . . Utility 2 | . 2 1 2 6 6 . . . Weapon 3 | 1 3 3 3 5 5 2 2 2 Tool/Special . | . . . . . . . . . Unused Backups 29 | . 13 . 9 1 6 . . . Power 4 | . 3 . 1 . . . . . Propulsion 8 | . 6 . 1 . 1 . . . Utility 7 | . . . 3 1 3 . . . Weapon 10 | . 4 . 4 . 2 . . . Tool/Special . | . . . . . . . . . Average Slot Usage (%) 92 | . 99 100 98 97 87 26 24 18 Engine 5 | . 14 14 2 . . . . . Core 4 | . . . 6 7 10 . . . Leg 19 | . 28 28 25 . . . . . Hover 10 | . . . 10 35 27 . . . Device 13 | . 14 14 15 7 14 8 5 . Storage 9 | . 13 14 9 7 5 . . . Processor 3 | . . . 3 7 6 6 8 11 Hackware 2 | . . . 1 7 6 6 7 5 Protection 3 | . . . 5 7 2 . . . Energy Gun 9 | . 14 . 11 1 6 . . . Energy Cannon 6 | . 12 28 1 2 . . . . Ballistic Gun 2 | . . . 3 10 . . . . Peak Build Rating 59 | 7 11 12 40 46 59 18 21 14 Average Rating 24 | 6 9 10 29 42 48 13 13 11 On Entrance 17 | 6 7 10 10 37 46 15 12 12 Naked Turns 2 | . . . . . . . . 2 Heaviest Build 44 | 12 20 20 36 44 43 2 10 . Greatest Support 55 | 20 20 20 55 45 46 6 6 4 Greatest Overweight (x) 3 | . . . 1 . 3 . 3 . Average Overweight (x) . | . . . . . . . . . Largest Inventory Capacity 25 | 8 8 8 25 15 15 5 5 8 Average Capacity 9 | 8 7 8 10 15 14 5 5 5 Most Carried 15 | 6 8 8 15 15 15 3 4 4 Average Carried 9 | 6 7 8 8 14 13 3 3 3 Final Capacity 15 | 8 8 8 15 15 5 5 5 5 Final Carried 15 | 6 8 8 15 15 4 3 3 4 Class Distribution -------------------- 66% | Mutant 33% | Scavenger-Mutant Dominant Class ---------------- Mutant | -10/Materials Mutant | -10/Subcaves Scavenger-Mutant | -8/Materials Mutant | -7/Factory Scavenger-Mutant | -6/Factory Mutant | -6/Waste Mutant | -6/Factory Mutant | -5/Factory Resources | -11 -10 -10 -8 -7 -6 -6 -6 -5 ----------- Run | Yrd Mat Sub Mat Fac Fac Was Fac Fac Matter Collected 2180 | 213 273 60 1121 261 252 . . . Remotely . | . . . . . . . . . Salvage Created 3943 | 114 441 211 2506 500 171 . . . Parts 186 | 6 18 17 114 25 6 . . . Haulers Intercepted 9 | . 2 . 6 1 . . . . Recyclers Shooed 2 | . . . 1 1 . . . . Parts Field Recycled . | . . . . . . . . . Retrieved Matter . | . . . . . . . . . Parts Self-Destructed 2 | . . 2 . . . . . . Prevented . | . . . . . . . . . Kills | -11 -10 -10 -8 -7 -6 -6 -6 -5 ------- Run | Yrd Mat Sub Mat Fac Fac Was Fac Fac Combat Hostiles Destroyed 65 | . 11 5 44 5 . . . . Guns 50 | . 9 . 37 4 . . . . Cannons 8 | . 2 5 . 1 . . . . AOE 7 | . . . 7 . . . . . Classes Destroyed 14 | 2 3 2 6 1 . . . . Worker 2 | . . . 2 . . . . . Builder 4 | . . . 2 1 1 . . . Tunneler 2 | 1 . . 1 . . . . . Hauler 9 | . 2 . 6 1 . . . . Recycler 7 | 1 . . 3 2 1 . . . Mechanic 1 | . . . 1 . . . . . Operator 1 | . . . 1 . . . . . Watcher 5 | . 2 . 3 . . . . . Swarmer 9 | . . . 9 . . . . . Grunt 38 | . 11 . 24 3 . . . . Sentry 11 | . . 1 9 1 . . . . Specialist 2 | . . . 2 . . . . . Programmer 1 | . . . . 1 . . . . Subdweller 4 | . . 4 . . . . . . Best Kill Streak 22 | 2 4 4 22 3 1 . . . Combat Bots Only 13 | . 3 4 13 3 . . . . Max Kills in Single Turn 5 | 1 1 1 5 2 1 . . . Gunslinging . | . . . . . . . . . Exploded 2 | . . . 2 . . . . . Melee . | . . . . . . . . . Uniques/NPCs Destroyed . | . . . . . . . . . Combat | -11 -10 -10 -8 -7 -6 -6 -6 -5 -------- Run | Yrd Mat Sub Mat Fac Fac Was Fac Fac Hostile Shots Fired 597 | . 27 12 239 44 162 1 72 40 Missed 195 | . 4 6 61 17 64 . 25 18 Hits 402 | . 23 6 178 27 98 1 47 22 Melee 7 | . . . . . . 1 . 6 Projectile 395 | . 23 6 178 27 98 . 47 16 AOE 4 | . . . 1 . . . . 3 Critical Strikes 19 | . 1 . 9 . . 1 4 4 Part Disruptions 1 | . . . . . . . 1 . Damage Taken 5912 | . 303 130 2632 308 1465 40 536 498 Core 1689 | . 69 24 358 33 399 40 288 478 Absorbed by Shields 40 | . . . . . . . 40 . Regen/Repaired (Parts) 141 | . . . . 91 50 . . . Core Remaining (%) 61 | 100 . 62 34 95 . . 14 . Volleys Fired 246 | 3 41 13 165 22 . . 2 . Largest 2 | 2 2 2 2 2 . . 1 . Hottest 150 | 70 130 120 144 150 . . 75 . Shots Fired 472 | 6 79 26 317 42 . . 2 . Gun 383 | 6 42 . 301 34 . . . . Cannon 77 | . 34 26 10 6 . . 1 . Launcher 12 | . 3 . 6 2 . . 1 . Special . | . . . . . . . . . Kinetic 91 | 3 . . 60 28 . . . . Thermal 369 | 3 76 26 251 12 . . 1 . Explosive 11 | . 3 . 6 2 . . . . Electromagnetic 1 | . . . . . . . 1 . Robot Hit Streak 16 | 2 16 12 14 11 . . 3 . Robot Miss Streak 5 | 1 3 2 5 2 . . . . Penetration Max . | . . . . . . . . . Secondary Targets 5 | . . . 5 . . . . . Max Gunslinging Chain 1 | . . . 1 . . . . . Shots Hit Robots 331 | 3 63 18 198 36 11 . 2 . Core Hits 196 | 3 60 9 105 17 2 . . . Critical Kills . | . . . . . . . . . Critical Parts Destroyed 1 | . . . . 1 . . . . Critical Strikes 9 | . . . 8 1 . . . . Burn 8 | . . . 8 . . . . . Destroy 1 | . . . . 1 . . . . Melee Attacks 27 | . . . . 7 20 . . . Impact . | . . . . . . . . . Slashing 27 | . . . . 7 20 . . . Piercing . | . . . . . . . . . Sneak Attacks 5 | . . . . 2 3 . . . Combat Hostiles . | . . . . . . . . . Follow-up Attacks . | . . . . . . . . . Damage Inflicted 7173 | 37 998 312 4487 816 481 . 40 2 Guns 4434 | 37 534 . 3333 530 . . . . Cannons 1111 | . 456 312 187 125 . . 31 . Explosions 966 | . . . 962 . . . 4 . Melee 642 | . . . . 161 481 . . . Ramming 20 | . 8 . 5 . . . 5 2 Kinetic 926 | . . . 575 351 . . . . Thermal 4619 | 37 990 312 2945 304 . . 31 . Explosive 962 | . . . 962 . . . . . Electromagnetic 4 | . . . . . . . 4 . Impact . | . . . . . . . . . Slashing 642 | . . . . 161 481 . . . Piercing . | . . . . . . . . . Highest Corruption 3 | . . . . 3 . . 2 . Average Corruption 2 | . . . . 2 . . 1 . Corruption Purged . | . . . . . . . . . Corruption Blocked . | . . . . . . . . . Effects 4 | . . . . 2 . . 2 . Message Errors 1 | . . . . 1 . . . . Matter Fused 2 | . . . . . . . 2 . Alerts 1 | . . . . 1 . . . . Overload Shots . | . . . . . . . . . Overflow Damage 116 | . . . 74 32 10 . . . Projectiles 19 | . . . 19 . . . . . Explosions 55 | . . . 55 . . . . . Melee 42 | . . . . 32 10 . . . Knockbacks . | . . . . . . . . . Impact . | . . . . . . . . . Kinetic . | . . . . . . . . . Secondary . | . . . . . . . . . Self-Inflicted Damage 3 | . . . . . . . 2 1 Shots . | . . . . . . . . . Rammed 3 | . . . . . . . 2 1 Targets Rammed 8 | . 4 . 1 . . . 2 1 Kicked 5 | . 4 . 1 . . . . . Crushed . | . . . . . . . . . Highest Temperature 260 | 50 240 . 260 171 . . . . Average Temperature 83 | 26 101 . 76 50 . . . . Received Heat Transfer 1603 | . 183 24 1272 72 18 . 34 . Effects 2 | . . . 2 . . . . . Interference 2 | . . . 2 . . . . . Siege Activations . | . . . . . . . . . Martial Activations . | . . . . . . . . . Shielding Activations . | . . . . . . . . . Robots Disrupted . | . . . . . . . . . Combat Hostiles . | . . . . . . . . . Robots Corrupted . | . . . . . . . . . Combat Hostiles . | . . . . . . . . . Parts Fried . | . . . . . . . . . Impact Corruptions . | . . . . . . . . . Robots Melted . | . . . . . . . . . Combat Hostiles . | . . . . . . . . . Parts Melted 24 | . . 3 20 1 . . . . Heat Transferred 9809 | 111 1652 666 6808 535 . . 37 . Parts Sabotaged . | . . . . . . . . . Parts Stolen . | . . . . . . . . . Parts Stripped . | . . . . . . . . . Power Chain Reactions . | . . . . . . . . . Alert | -11 -10 -10 -8 -7 -6 -6 -6 -5 ------- Run | Yrd Mat Sub Mat Fac Fac Was Fac Fac Maximum Alert Level 2 | . . . 2 . . . . . Low Security (%) 68 | 100 100 . 30 100 100 100 100 100 Level 1 27 | . . . 60 . . . . . Level 2 4 | . . . 9 . . . . . Level 3 . | . . . . . . . . . Level 4 . | . . . . . . . . . Level 5 . | . . . . . . . . . High Security . | . . . . . . . . . Max Security . | . . . . . . . . . Peak Influence 645 | 10 116 . 645 177 58 4 95 46 Initial 124 | . . . . 124 44 4 . 46 Average 131 | 3 39 . 238 101 14 1 7 26 Influence Increases 2348 | 10 361 20 1471 188 193 . 105 . Destroy 0b10 Robot/C 1220 | . 220 20 880 100 . . . . Destroy 0b10 Robot/NC 155 | 10 20 . 95 20 10 . . . Destroy Leader 308 | . 38 . 238 32 . . . . Successful Hack 118 | . 44 . 31 15 28 . . . Disable Machine 45 | . . . 45 . . . . . Destroy Structure 97 | . 24 . 47 21 5 . . . Partial Spotted 15 | . . . . . 15 . . . Lose Combat Pursuer 390 | . 15 . 135 . 135 . 105 . Influence Decreases 2348 | 10 357 24 1197 372 271 12 10 95 Entered New Map 256 | . . 3 . 150 46 8 . 49 Time Decay 1231 | 10 317 21 467 222 140 4 10 40 Lost Part 231 | . 10 . 130 . 85 . . 6 Purge Threat 630 | . 30 . 600 . . . . . Squads Dispatched 18 | . 1 . 8 3 5 . . 1 Investigation 5 | . . . 3 1 1 . . . Extermination 3 | . . . . 2 1 . . . Reinforcement 8 | . 1 . 3 . 3 . . 1 Assault 1 | . . . 1 . . . . . Garrison 1 | . . . 1 . . . . . Intercept . | . . . . . . . . . Searches Triggered . | . . . . . . . . . Construction Impeded 1 | . . . 1 . . . . . Haulers Reinforced 1 | . . . . . 1 . . . Active Scanning Responses . | . . . . . . . . . Cargo Convoy Interrupts . | . . . . . . . . . Stealth | -11 -10 -10 -8 -7 -6 -6 -6 -5 --------- Run | Yrd Mat Sub Mat Fac Fac Was Fac Fac Distress Signals 9 | . . . 7 . 1 . 1 . Communications Jammed . | . . . . . . . . . Distress Signals . | . . . . . . . . . Times Spotted 153 | . 16 5 80 7 21 6 8 10 Peak Tracking Total 11 | . 5 4 8 2 11 6 8 8 Tactical Retreats 14 | . 1 . 5 . 6 . 2 . Traps | -11 -10 -10 -8 -7 -6 -6 -6 -5 ------- Run | Yrd Mat Sub Mat Fac Fac Was Fac Fac Traps Triggered 6 | . . . 1 . 2 . 3 . Indirectly 2 | . . . . . . . 2 . Trap Hack Attempts . | . . . . . . . . . Triggered . | . . . . . . . . . Disarmed . | . . . . . . . . . Reprogrammed . | . . . . . . . . . Reused . | . . . . . . . . . Traps Extracted . | . . . . . . . . . Installed . | . . . . . . . . . Triggered . | . . . . . . . . . Machines | -11 -10 -10 -8 -7 -6 -6 -6 -5 ---------- Run | Yrd Mat Sub Mat Fac Fac Was Fac Fac Machines Disabled 3 | . . . 3 . . . . . Max in Single Turn 1 | . . . 1 . . . . . Garrison Access 1 | . . . 1 . . . . . Machines Repaired . | . . . . . . . . . Machines Dismantled . | . . . . . . . . . Machines Sabotaged . | . . . . . . . . . Overloaded Fab Kills . | . . . . . . . . . Hacking | -11 -10 -10 -8 -7 -6 -6 -6 -5 --------- Run | Yrd Mat Sub Mat Fac Fac Was Fac Fac Machines Accessed 30 | . 10 . 13 2 4 . 1 . Terminals 20 | . 7 . 10 . 2 . 1 . Fabricators . | . . . . . . . . . Repair Stations 5 | . 1 . . 2 2 . . . Recycling Units 4 | . 2 . 2 . . . . . Scanalyzers . | . . . . . . . . . Garrison Access 1 | . . . 1 . . . . . Total Hacks 100 | . 35 . 39 12 12 . 2 . Successful 61 | . 21 . 22 9 8 . 1 . Failed 38 | . 13 . 17 3 4 . 1 . Catastrophic 9 | . 2 . 7 . . . . . Database Lockouts 1 | . 1 . . . . . . . Manual 47 | . 20 . 25 . 2 . . . Terminals 70 | . 28 . 34 . 6 . 2 . Fabricators . | . . . . . . . . . Repair Stations 21 | . 3 . . 12 6 . . . Recycling Units 7 | . 4 . 3 . . . . . Scanalyzers . | . . . . . . . . . Garrison Access 2 | . . . 2 . . . . . Terminal Hacks 28 | . 11 . 14 . 2 . 1 . Robot Analysis 7 | . 2 . 5 . . . . . Prototype ID Bank 1 | . 1 . . . . . . . Open DSF 1 | . . . . . . . 1 . Level Access Points 1 | . . . . . 1 . . . Terminal Index 2 | . 1 . 1 . . . . . Recycling Unit Index 1 | . . . 1 . . . . . Alert Level 2 | . . . 2 . . . . . Unreport Threat 5 | . 1 . 4 . . . . . Locate Traps 4 | . 4 . . . . . . . Maintenance Status 2 | . 1 . . . 1 . . . Transport Status 1 | . 1 . . . . . . . Zone Layout 1 | . . . 1 . . . . . Fabricator Hacks . | . . . . . . . . . Repair Station Hacks 14 | . 1 . . 9 4 . . . Scan Component 8 | . 1 . . 5 2 . . . Repair 6 | . . . . 4 2 . . . Recycling Unit Hacks 6 | . 4 . 2 . . . . . Report Inventory 2 | . 2 . . . . . . . Retrieve Matter 1 | . 1 . . . . . . . Retrieve Components 3 | . 1 . 2 . . . . . Scanalyzer . | . . . . . . . . . Garrison Access Hacks 1 | . . . 1 . . . . . Seal Access 1 | . . . 1 . . . . . Unauthorized Hacks 12 | . 5 . 5 . 2 . . . Terminals 12 | . 5 . 5 . 2 . . . Botnet 11 | . 5 . 4 . 2 . . . Operators 1 | . . . 1 . . . . . Fabricators . | . . . . . . . . . Repair Stations . | . . . . . . . . . Recycling Units . | . . . . . . . . . Scanalyzers . | . . . . . . . . . Garrison Access . | . . . . . . . . . Data Cores Recovered . | . . . . . . . . . Used . | . . . . . . . . . Hacking Detections 27 | . 8 . 12 2 4 . 1 . Full Trace Events 4 | . . . 2 1 1 . . . Feedback Events . | . . . . . . . . . Feedback Blocked . | . . . . . . . . . Robot Schematics Acquired . | . . . . . . . . . Robots Built . | . . . . . . . . . Authchips . | . . . . . . . . . Time . | . . . . . . . . . Total Robot Build Rating . | . . . . . . . . . Part Schematics Acquired . | . . . . . . . . . Parts Built . | . . . . . . . . . Authchips . | . . . . . . . . . Time . | . . . . . . . . . Total Part Build Rating . | . . . . . . . . . Parts Repaired 6 | . . . . 4 2 . . . Time 237 | . . . . 171 66 . . . Parts Recycled . | . . . . . . . . . Recycled Matter . | . . . . . . . . . Retrieved Matter . | . . . . . . . . . Retrieved Components 19 | . 9 . 10 . . . . . Parts Scanalyzed . | . . . . . . . . . Part Schematics Acquired . | . . . . . . . . . Parts Damaged . | . . . . . . . . . Bothacking | -11 -10 -10 -8 -7 -6 -6 -6 -5 ------------ Run | Yrd Mat Sub Mat Fac Fac Was Fac Fac Used RIF Installer . | . . . . . . . . . Robots Hacked . | . . . . . . . . . Non-combat . | . . . . . . . . . Combat . | . . . . . . . . . Robot Hacks Applied . | . . . . . . . . . Relay Couplers Released 1 | . . . . . 1 . . . Machine Destruction 1 | . . . . . 1 . . . Fabnet Peak Effective % . | . . . . . . . . . Robots Rewired . | . . . . . . . . . Allies Hacked . | . . . . . . . . . Hacks Repelled . | . . . . . . . . . Allies | -11 -10 -10 -8 -7 -6 -6 -6 -5 -------- Run | Yrd Mat Sub Mat Fac Fac Was Fac Fac Total Allies . | . . . . . . . . . Largest Group . | . . . . . . . . . Highest-Rated Group . | . . . . . . . . . Highest-Rated Ally . | . . . . . . . . . Total Orders . | . . . . . . . . . Ally Attacks . | . . . . . . . . . Total Damage . | . . . . . . . . . Kills . | . . . . . . . . . Allies Corrupted . | . . . . . . . . . Allies Melted . | . . . . . . . . . Intel | -11 -10 -10 -8 -7 -6 -6 -6 -5 ------- Run | Yrd Mat Sub Mat Fac Fac Was Fac Fac Active Infowar (turns) 3417 | 9 841 212 1110 479 447 53 175 91 Optics 1975 | . . . 730 479 447 53 175 91 Seismic 1514 | 9 841 212 380 . . . 72 . Robot Analysis Total 7 | . 2 . 5 . . . . . Derelict Logs Recovered . | . . . . . . . . . Drone Launches . | . . . . . . . . . Drone Recoveries . | . . . . . . . . . Exploration | -11 -10 -10 -8 -7 -6 -6 -6 -5 ------------- Run | Yrd Mat Sub Mat Fac Fac Was Fac Fac Turns Passed 4965 | 28 1224 386 2080 479 447 53 175 93 Spaces Moved 4359 | 16 806 247 1627 401 692 117 268 185 Core 442 | . . . . . . 41 253 148 Treads . | . . . . . . . . . Legs 1796 | 16 806 247 727 . . . . . Wheels . | . . . . . . . . . Hover 1936 | . . . 900 401 635 . . . Flight 185 | . . . . . 57 76 15 37 Fastest Speed 35 | 120 120 120 48 44 40 40 40 35 Average Speed 77 | 120 120 120 81 44 46 43 54 47 Slowest Speed 210 | 120 120 120 190 44 210 50 200 50 Overloaded Moves . | . . . . . . . . . Propulsion Burnouts . | . . . . . . . . . Robots Hopped . | . . . . . . . . . Potential Cave-ins . | . . . . . . . . . Cave-ins Triggered . | . . . . . . . . . Exploration Rate (%) 39 | 2 98 21 94 12 25 75 15 13 Regions Visited 8 Branch Regions 1 Pre-discovered Areas . | . . . . . . . . . Known Exits Taken 1 | . . . . . . . 1 . Unknown Exits Taken 5 | 1 1 1 1 1 . . . . Scrap Searched . | . . . . . . . . . Spaces Dug 37 | . 7 . . 25 5 . . . Terrain Destroyed 109 | . 23 . 56 25 5 . . . Melee 7 | . . . . 2 5 . . . Projectile 3 | . . . 3 . . . . . AOE 99 | . 23 . 53 23 . . . . Terrain Rammed . | . . . . . . . . . Walls Destroyed . | . . . . . . . . . Machines Disabled . | . . . . . . . . . Actions | -11 -10 -10 -8 -7 -6 -6 -6 -5 --------- Run | Yrd Mat Sub Mat Fac Fac Was Fac Fac Total 5436 | 19 986 308 2081 652 791 118 291 190 Wait 447 | . 72 45 115 188 22 . 4 1 Move 4353 | 15 805 246 1626 400 692 116 268 185 Hop . | . . . . . . . . . Pick Up 70 | . 13 . 41 5 10 . 1 . Fast Attach 40 | 1 5 . 15 5 7 1 4 2 Attach 32 | . 1 . 17 2 10 1 1 . Detach 16 | . 2 . 6 1 6 . . 1 Swap 89 | . 22 4 42 13 7 . 1 . Drop 101 | . 21 . 53 9 17 . 1 . Fire 246 | 3 41 13 165 22 . . 2 . Melee 27 | . . . . 7 20 . . . Ram 2 | . . . . . . . 1 1 Kick 5 | . 4 . 1 . . . . . Crush . | . . . . . . . . . Escape Stasis 8 | . . . . . . . 8 . Rewire . | . . . . . . . . . Trap . | . . . . . . . . . Miscellaneous . | . . . . . . . . . Route ------- -11/Scrapyard -10/Materials (discovered 6 exits: [*Mat x3] / [*Min x2] / [*Sub]) -10/Subcaves -8/Materials (discovered 3 exits: *Fac x3) -7/Factory -6/Factory (discovered 4 exits: Fac x4) -6/Waste -6/Factory -5/Factory History --------- Turn | Location | Event 1 | -11/Scrapyard | Discovered new exit (range 2) 29 | -11/Scrapyard | Entered Materials 316 | -10/Materials | Central database locked down 317 | -10/Materials | Build established: Mutant 450 | -10/Materials | Discovered new exit (range 6) 527 | -10/Materials | Discovered new exit (range 10) 566 | -10/Materials | Discovered new exit (range 8) 681 | -10/Materials | Discovered new exit (range 11) 1201 | -10/Materials | Discovered new exit (range 16) 1217 | -10/Materials | Discovered new exit (range 9) 1253 | -10/Materials | Entered Subcaves 1540 | -10/Subcaves | Curiously followed by a Cobbler waking with a query about "LVR3C" 1621 | -10/Subcaves | Discovered new exit (range 16) 1629 | -10/Subcaves | Shifting Twisted Machinery released Battle Cannon 1632 | -10/Subcaves | Shifting Twisted Machinery released Battle Rifle 1639 | -10/Subcaves | Entered Materials 1639 | -8/Materials | Evolved 4 slots: Propulsion x2, Utility x2 2021 | -8/Materials | Garrison activated, responded to threat 2259 | -8/Materials | Build established: Scavenger-Mutant 2424 | -8/Materials | Discovered new exit (range 15) 2839 | -8/Materials | First assault squad dispatched 2884 | -8/Materials | Core integrity fell below 50% 2911 | -8/Materials | Lost 4 parts (2n2u) 2926 | -8/Materials | Destroyed 13 combat bots 3264 | -8/Materials | Discovered new exit (range 11) 3379 | -8/Materials | Discovered new exit (range 17) 3403 | -8/Materials | Build established: Mutant 3719 | -8/Materials | Entered Factory 3719 | -7/Factory | Evolved 2 slots: Propulsion x1, Utility x1 3765 | -7/Factory | Repaired Gravmag System 3886 | -7/Factory | Repaired Broken Gravmag System 3932 | -7/Factory | Repaired Gravmag System 3977 | -7/Factory | Repaired Gravmag System 4128 | -7/Factory | Discovered new exit (range 19) 4198 | -7/Factory | Entered another Factory area 4198 | -6/Factory | Evolved 2 slots: Power x1, Utility x1 4287 | -6/Factory | Identified exit to Factory 4338 | -6/Factory | Repaired Gravmag System? 4359 | -6/Factory | Repaired Gravmag System 4508 | -6/Factory | Build established: Scavenger-Mutant 4531 | -6/Factory | Spotted B-75 Beast 4554 | -6/Factory | Lost 3 parts (1p2n) 4645 | -6/Factory | Sucked down chute 4645 | -6/Factory | Entered Waste 4650 | -6/Waste | Spotted C-40 Crusher 4650 | -6/Waste | Spotted C-40 Crusher 4668 | -6/Waste | Lost 9 parts (1p3n4u1w) 4671 | -6/Waste | Spotted C-40 Crusher 4673 | -6/Waste | Spotted C-40 Crusher 4674 | -6/Waste | Spotted C-40 Crusher 4677 | -6/Waste | Crushed by Compactor (1 part destroyed, 2 dropped) 4678 | -6/Waste | Core integrity fell below 50% 4683 | -6/Waste | Spotted C-40 Crusher 4692 | -6/Waste | Discovered new exit (range 10) 4698 | -6/Waste | Entered Factory 4799 | -6/Factory | Core integrity fell below 20% 4832 | -6/Factory | Lost 4 parts (1n3u) 4862 | -6/Factory | Discovered exit to Factory (range 21) 4873 | -6/Factory | Entered another Factory area 4873 | -5/Factory | Evolved 2 slots: Utility x2 4956 | -5/Factory | Spotted B-75 Beast 4966 | -5/Factory | Self-destructed Last Messages --------------- LOCATION=FACTORY GOAL=ESCAPE 04897_ K-01 Serf cleans the Assembly Bed. 04909_ ALERT: All DSF locations entering lockdown mode. 04939_ Acquired Sml. Storage Unit. 04940_ S-27 Virus destroyed. 04943_ Acquired VTOL Module. 04945_ Slug penetrates S-27 Virus. 04945_ S-27 Virus destroyed. 04952_ Penetrated by Slug. 04954_ ALERT: Suspicious intruders detected, dispatching Cutter reinforcements to area. 04957_ Knocked back. 04957_ VTOL Module destroyed. 04960_ Enh. Optical Array severed. 04961_ Hacking Suite severed. 04964_ Slammed into C-35 Carver. 04964_ Adv. Visual Processing Unit severed. 04966_ U-05 Engineer lays Concrete. Map ----- +----------------------------------------------------+ | ########### """ """" """" """" ""Y"" # | | # """ """" """" """" ###### | | # """" """" """" #??### | | """"""" %# """" """" """" #? | | """"""" [[+% """" """" """" #? | | """"""" # # | | """"""" " # | | # + | | """""" # ! ###### | | """""" ! # ######+##############+### # | | """""" # #???? ?????? # # | | """""" # #???? ????""" # # """ | | # #??? ??# """ # # """ | | ########### #???!! #?# """ # # """ | | ????#####?# #??!!! """" "#?# [[[# # | | ????# """ # #??!! """" "??# "S [[ # # ! | | ????#""F""# #? """" ???# """ [[ # # | | #####"" ""# #? """" T??# "" # #####+ | | # ! """" "??# ! # | | # """" "#??### ##### | | """"""" + "#????##????# | | """"""" # #??????????# | | """"""" ########## ###??????????# | | """"""" #?##########????????????###########+ | | #?# ############?????????? | | """"""" #?# c@c u u k + | | """"""" ### c########### #???# """ | | """"""" u #??????????????????# """ | | """"""" s #??????????????????# """ | | #??????????????????# "" | | #??????????????????# "" | | #??????????????????# | | +## #########??????????????????###### | | # # ####???????????????????????????????? | | ! ??## #####??????????????????????????????????? | | ??????# #??????????????????????????????????????? | | ??????# !#??????????????????????????????????????? | | ??????# #??????????????????????????????????????? | | ??????#! [#??????????????????????????????????????? | | ??????# #??????????????????????????????????????? | | ??????#####??????????????????????????????????????? | | ?????????????????????????????????????????????????? | | ?????????????????????????????????????????????????? | | ?????????????????????????????????????????????????? | | ?????????????????????????????????????????????????? | | ?????????????????????????????????????????????????? | | ?????????????????????????????????????????????????? | | ?????????????????????????????????????????????????? | | ?????????????????????????????????????????????????? | | ?????????????????????????????????????????????????? | +----------------------------------------------------+ Best States ------------- Heat Dissipation 79 Coolant Potential 100 Energy Generation 24 Energy Capacity 280 Matter Stores 300 Matter Capacity 300 Sight Range 22 Terrain Scan Density 10 EM Shielding 2 Armor Coverage 300 Evasion (%) 63 Recoil Reduction 6 Offensive Hacking 20 Item Schematics ----------------- None Robot Schematics ------------------ None Fabricated ------------ Nothing Repaired ---------- Gravmag System | 37% | -7/Factory Gravmag System | 24% | -7/Factory | Broken Gravmag System | 66% | -7/Factory Gravmag System | 68% | -7/Factory Gravmag System | 42% | -6/Factory Gravmag System | 46% | -6/Factory Alien Tech Used ----------------- None Achievements -------------- None Challenges ------------ None Game ------ Seed WeaponsSalvageMachine Manual? 0 Play Time 01:13:13 Cumulative 27.0 hours Start 2025.10.12 @ 12:35:32 End 2025.10.12 @ 14:13:41 Sessions 1 Manual Loads 0 Difficulty Rogue Special Mode None Game No. 39 Rogue 39 Adventurer 0 Explorer 0 Win Type - Total 1 Types 1/0/0/0/0/0/0/0/0/0 Lore% 24 Gallery% 32 Achievement% 33 Wizard Run 0 Options --------- Layout 1 ASCII 0 Keyboard 0 Movement Numpad Keybinds 0 Fullscreen 2 Font 24/Smallcaps Map View 50x35 Zoom Use 0% Tactical HUD 1 Map Filters NONE Filters NONE Steam 1 RUN: bee540a6-dba7-4fa1-8bd1-7eb8e9f4aab8